bitfinex-derivatives/quotes_SOLF0:USTF0_20241206
["timestamp","ask_amount","ask_price","bid_price","bid_amount"]
[1733477942171,2.1126,236.45,236.44,2.28]
[1733477943875,9.27495374,236.52,236.44,2.28]
[1733477944578,2.1122,236.5,236.45,2.1125]
[1733477944774,9.27495374,236.52,236.44,2.28]
[1733477945178,9.27495374,236.52,236.44,4.3926]
[1733477945381,9.27495374,236.52,236.44,2.28]
[1733477945981,2.1122,236.5,236.44,2.28]
[1733477946484,9.27495374,236.52,236.46,2.1124]
[1733477946680,9.27495374,236.52,236.44,2.28]
[1733477947183,2.1119,236.53,236.48,2.1122]
[1733477947479,1.65917,236.6,236.44,2.28]
[1733477947480,9.27495374,236.58,236.49,2.28]
[1733477947778,11.38635374,236.58,236.52,2.1118]
[1733477947977,9.27495374,236.58,236.52,2.1118]
[1733477948783,9.27495374,236.58,236.54,2.1117]
[1733477948983,9.27495374,236.58,236.55,2.28]
[1733477949780,9.27495374,236.58,236.45,2.6811]
[1733477949977,9.27495374,236.54,236.46,2.28]
[1733477950176,2.112,236.51,236.46,4.3924]
[1733477950477,9.27495374,236.54,236.46,2.28]
[1733477950677,2.112,236.51,236.46,2.28]
[1733477950882,9.27495374,236.54,236.46,2.28]
[1733477951083,9.27495374,236.57,236.46,2.28]
[1733477951284,9.27495374,236.57,236.47,1.2653]
[1733477951482,11.38655374,236.57,236.5,2.1121]
[1733477951778,9.27495374,236.57,236.51,2.28]
[1733477952185,0.67617,236.6,236.51,2.28]
[1733477952186,9.95112374,236.6,236.51,2.28]
[1733477952690,9.95112374,236.6,236.52,2.1118]
[1733477952885,9.95112374,236.6,236.51,2.28]
[1733477954388,2.1117,236.56,236.51,4.392]
[1733477955081,2.1117,236.56,236.51,2.28]
[1733477955281,9.27495374,236.57,236.52,2.1119]
[1733477955282,11.38645374,236.57,236.52,2.1119]
[1733477955484,11.38645374,236.57,236.51,2.28]
[1733477956086,11.38645374,236.57,236.51,4.3919]
[1733477956287,11.38645374,236.57,236.51,2.28]
[1733477956484,11.38645374,236.57,236.52,2.1119]
[1733477956989,2.1115,236.57,236.52,2.1119]
[1733477957593,9.95112374,236.6,236.51,2.28]
[1733477958185,2.1114,236.59,236.55,2.1116]
[1733477958389,9.95112374,236.6,236.56,2.28]
[1733477958590,9.27495374,236.57,236.47,1.2653]
[1733477958790,0.67617,236.6,236.47,3.5453]
[1733477958791,9.27495374,236.53,236.47,3.5453]
[1733477959091,2.112,236.52,236.47,3.5453]
[1733477959291,0.67617,236.6,236.47,3.5453]
[1733477959490,9.27495374,236.57,236.47,3.5453]
[1733477959989,9.27495374,236.57,236.48,4.20402276]
[1733477960393,2.1115,236.57,236.53,2.1118]
[1733477960589,9.95112374,236.6,236.54,2.28]
[1733477961294,9.27495374,236.57,236.54,2.28]
[1733477961794,2.1117,236.55,236.54,2.28]
[1733477961989,9.27495374,236.57,236.47,1.2653]
[1733477962188,9.27495374,236.49,236.45,3.4904]
[1733477962389,9.27495374,236.49,236.46,2.28]
[1733477962794,2.1123,236.48,236.46,2.28]
[1733477963389,9.27495374,236.49,236.46,2.28]
[1733477963390,2.1124,236.47,236.46,2.28]
[1733477966209,9.27495374,236.49,236.41,2.28]
[1733477966396,9.27495374,236.45,236.41,2.28]
[1733477966899,2.1128,236.43,236.41,2.28]
[1733477967100,9.27495374,236.45,236.37,4.0026]
[1733477967292,9.27495374,236.45,236.24,5.82140411]
[1733477967293,9.27495374,236.42,236.29,1.361]
[1733477967495,9.27495374,236.39,236.33,2.28]
[1733477968399,9.27495374,236.36,236.15,5.82140411]
[1733477968699,2.1139,236.31,236.26,2.1142]
[1733477968897,9.27495374,236.33,236.27,2.28]
[1733477969293,9.27495374,236.33,236.27,4.3942]
[1733477969294,2.1137,236.32,236.27,4.3942]
[1733477969491,9.27495374,236.33,236.19,1.3719]
[1733477969692,11.55495374,236.4,236.2,2.28]
[1733477969693,9.27495374,236.3,236.2,2.28]
[1733477969894,11.38895374,236.3,236.2,2.28]
[1733477970098,2.114,236.3,236.2,2.28]
[1733477970295,14.85995093,236.34,236.2,2.28]
[1733477970599,2.1138,236.31,236.25,2.1143]
[1733477970799,2.1138,236.31,236.25,4.3943]
[1733477971702,2.1139,236.3,236.25,4.3943]
[1733477972195,14.85995093,236.34,236.25,4.3943]
[1733477972399,2.1138,236.31,236.25,4.3943]
[1733477972594,14.85995093,236.34,236.25,2.28]
[1733477973207,14.85995093,236.4,236.25,2.28]
[1733477973400,14.85995093,236.4,236.26,2.5222]
[1733477973596,2.1135,236.35,236.26,2.5222]
[1733477974108,14.85995093,236.4,236.26,2.5222]
[1733477975408,2.1131,236.39,236.26,2.5222]
[1733477975803,14.85995093,236.4,236.26,2.5222]
[1733477976602,2.1135,236.34,236.29,2.1139]
[1733477976793,14.85995093,236.4,236.29,2.1139]
[1733477977000,14.85995093,236.4,236.26,2.5222]
[1733477977194,2.1136,236.34,236.28,2.114]
[1733477977803,2.1136,236.33,236.28,2.114]
[1733477978403,2.1134,236.36,236.31,2.1138]
[1733477978599,12.69,236.51,236.31,2.1138]
[1733477978797,0.59874,236.57,236.32,1.3189]
[1733477979002,14.85995093,236.5,236.32,5.58117382]
[1733477979203,14.85995093,236.5,236.32,1.3189]
[1733477979901,14.85995093,236.5,236.38,2.1131]
[1733477980105,14.85995093,236.5,236.39,2.28]
[1733477980307,14.85995093,236.5,236.4,2.28]
[1733477980508,2.1123,236.48,236.43,2.1127]
[1733477981005,14.85995093,236.5,236.43,2.1127]
[1733477981405,2.1123,236.48,236.43,2.1127]
[1733477982405,2.1121,236.51,236.4,2.28]
[1733477982805,14.85995093,236.54,236.4,2.28]
[1733477983099,2.1118,236.54,236.49,2.1122]
[1733477983301,2.1118,236.54,236.5,2.28]
[1733477983702,14.85995093,236.54,236.5,2.28]
[1733477984105,2.112,236.52,236.46,2.28]
[1733477984308,0.59874,236.57,236.47,4.21087645]
[1733477984505,0.59874,236.57,236.46,2.28]
[1733477984700,0.59874,236.57,236.5,2.1121]
[1733477984701,2.71034,236.57,236.5,2.1121]
[1733477984900,2.71034,236.57,236.51,2.28]
[1733477984901,0.59874,236.57,236.51,2.28]
[1733477985310,15.45869093,236.57,236.51,2.28]
[1733477985702,15.45869093,236.57,236.47,2.28]
[1733477985903,14.85995093,236.53,236.47,2.28]
[1733477986208,14.85995093,236.53,236.45,2.28]
[1733477987213,2.1121,236.5,236.45,4.3925]
[1733477987711,2.1117,236.55,236.45,2.28]
[1733477988014,15.45869093,236.57,236.45,2.28]
[1733477989315,2.1119,236.53,236.46,2.1124]
[1733477989504,2.1119,236.53,236.45,2.28]
[1733477989704,15.45869093,236.57,236.45,2.28]
[1733477990511,2.1116,236.56,236.48,2.1122]
[1733477990712,2.1116,236.56,236.45,2.28]
[1733477991116,2.1116,236.56,236.5,2.1121]
[1733477991415,2.1116,236.56,236.51,2.28]
[1733477994410,2.1116,236.56,236.51,4.392]
[1733477995020,2.1115,236.57,236.52,2.1119]
[1733477995621,9.26694996,236.58,236.51,2.28]
[1733477995822,9.26694996,236.55,236.51,2.28]
[1733477996629,2.1119,236.53,236.51,2.28]
[1733477996924,9.26694996,236.55,236.51,2.28]
[1733477997726,2.1118,236.54,236.51,2.28]
[1733477999225,9.26694996,236.52,236.49,2.28]
[1733477999824,2.112,236.51,236.49,2.28]
[1733478000126,9.26694996,236.52,236.49,2.28]
[1733478000528,9.26694996,236.55,236.49,2.28]
[1733478002622,9.26694996,236.52,236.49,2.28]
[1733478003228,9.26694996,236.55,236.49,2.28]
[1733478003430,2.1119,236.52,236.49,4.3922]
[1733478003629,2.1119,236.52,236.49,2.28]
[1733478004527,2.1121,236.5,236.49,2.28]
[1733478004928,2.112,236.51,236.49,2.28]
[1733478005429,9.26694996,236.55,236.49,2.28]
[1733478006829,2.112,236.52,236.49,2.28]
[1733478007225,2.1121,236.5,236.44,2.1126]
[1733478007423,9.26694996,236.52,236.45,2.28]
[1733478007733,9.26694996,236.52,236.46,2.28]
[1733478007935,2.1122,236.49,236.46,2.28]
[1733478008231,9.26694996,236.55,236.46,2.28]
[1733478008629,2.112,236.51,236.48,2.1123]
[1733478009129,9.26694996,236.55,236.46,2.28]
[1733478009329,2.112,236.52,236.46,2.28]
[1733478009632,9.26694996,236.49,236.39,1.2979]
[1733478009835,2.1125,236.46,236.4,2.28]
[1733478010527,2.1125,236.46,236.43,2.1127]
[1733478011440,2.1124,236.47,236.44,2.28]
[1733478011936,2.1126,236.45,236.44,2.28]
[1733478013531,2.1125,236.46,236.44,2.28]
[1733478013932,9.26694996,236.49,236.44,2.28]
[1733478014135,2.1126,236.45,236.44,2.28]
[1733478014537,9.26694996,236.49,236.44,2.28]
[1733478014930,9.26694996,236.54,236.44,2.28]
[1733478015135,9.26694996,236.54,236.44,6.59610285]
[1733478015331,2.112,236.52,236.49,2.1122]
[1733478015534,1.3931,236.59,236.5,2.28]
[1733478015535,9.26694996,236.57,236.5,2.28]
[1733478016035,11.37844996,236.57,236.53,2.1118]
[1733478016232,9.26694996,236.6,236.53,2.1118]
[1733478016439,11.37814996,236.6,236.53,2.1118]
[1733478016627,11.37814996,236.6,236.5,2.28]
[1733478016829,11.37814996,236.6,236.51,4.15210389]
[1733478017234,0.66327,236.59,236.5,2.28]
[1733478017437,0.66327,236.59,236.51,1.372]
[1733478017732,0.66327,236.59,236.58,2.1114]
[1733478017933,9.26694996,236.66,236.58,2.1114]
[1733478017934,11.37774996,236.66,236.58,2.28]
[1733478018734,11.37774996,236.66,236.6,2.1112]
[1733478018934,11.37774996,236.66,236.58,2.28]
[1733478019733,9.26694996,236.66,236.61,2.1111]
[1733478020637,9.26694996,236.66,236.58,2.28]
[1733478020837,2.6598,236.74,236.58,2.28]
[1733478020838,9.26694996,236.69,236.58,2.28]
[1733478021528,11.37764996,236.66,236.6,2.1111]
[1733478021733,9.26694996,236.63,236.56,2.28]
[1733478021929,9.26694996,236.6,236.56,2.28]
[1733478022538,9.26694996,236.63,236.56,2.28]
[1733478023336,2.28,236.73,236.6,2.1112]
[1733478023337,9.26694996,236.66,236.6,2.1112]
[1733478023542,9.26694996,236.66,236.61,2.28]
[1733478023937,11.37774996,236.66,236.61,2.28]
[1733478024132,9.26694996,236.69,236.61,2.28]
[1733478024339,9.26694996,236.69,236.61,6.40302482]
[1733478024543,9.26694996,236.69,236.61,2.28]
[1733478024744,9.26694996,236.69,236.65,2.1107]
[1733478025040,1.2655,236.74,236.66,2.28]
[1733478025041,9.26694996,236.72,236.66,2.28]
[1733478025243,2.1102,236.71,236.66,4.3907]
[1733478026442,9.26694996,236.72,236.68,2.1105]
[1733478027341,2.1099,236.75,236.66,2.28]
[1733478027935,2.1103,236.7,236.66,2.28]
[1733478028135,9.26694996,236.73,236.66,2.28]
[1733478028538,9.26694996,236.7,236.64,2.28]
[1733478029143,2.1106,236.68,236.64,2.28]
[1733478029839,2.1109,236.64,236.62,2.28]
[1733478030035,9.26694996,236.64,236.55,2.5651]
[1733478030236,2.28,236.73,236.55,2.5651]
[1733478030237,9.26694996,236.61,236.55,2.5651]
[1733478030440,9.26694996,236.61,236.56,2.28]
[1733478030641,1.3924,236.75,236.56,2.28]
[1733478030642,2.1115,236.57,236.56,2.28]
[1733478032941,2.1113,236.6,236.56,2.28]
[1733478033142,9.26694996,236.61,236.56,2.28]
[1733478033349,9.26694996,236.58,236.56,2.28]
[1733478033743,9.26694996,236.58,236.48,2.28]
[1733478033943,9.26694996,236.53,236.48,2.28]
[1733478034139,9.26694996,236.53,236.45,1.3139]
[1733478034346,9.26694996,236.53,236.47,2.28]
[1733478034749,2.112,236.52,236.47,2.28]
[1733478034947,9.26694996,236.53,236.47,2.28]
[1733478035351,2.1124,236.47,236.45,2.28]
[1733478035749,2.1124,236.47,236.38,2.28]
[1733478035750,9.26694996,236.47,236.38,2.28]
[1733478035944,11.54694996,236.52,236.38,2.28]
[1733478035945,14.84393023,236.46,236.38,2.28]
[1733478036649,2.1127,236.44,236.38,4.3931]
[1733478037447,14.84393023,236.46,236.3,1.286]
[1733478037646,1.3088,236.51,236.32,2.1137]
[1733478037647,2.1131,236.39,236.32,2.1137]
[1733478037848,2.1131,236.39,236.33,2.28]
[1733478038253,14.84393023,236.42,236.33,4.3936]
[1733478038548,14.84393023,236.42,236.33,2.28]
[1733478038753,1.3939,236.5,236.33,2.28]
[1733478038754,2.1127,236.44,236.33,2.28]
[1733478038953,14.84393023,236.46,236.33,2.28]
[1733478039344,14.84393023,236.42,236.33,2.28]
[1733478039951,14.84393023,236.46,236.33,2.28]
[1733478040656,2.1126,236.45,236.37,2.1132]
[1733478040849,2.1126,236.45,236.38,2.28]
[1733478041054,14.84393023,236.46,236.38,2.28]
[1733478041249,2.1129,236.41,236.38,2.28]
[1733478041557,14.84393023,236.42,236.37,2.28]
[1733478042257,14.84393023,236.46,236.37,2.28]
[1733478042453,2.1127,236.44,236.37,2.28]
[1733478042656,14.84393023,236.46,236.37,2.28]
[1733478043656,2.1127,236.43,236.37,4.3932]
[1733478044060,14.84393023,236.42,236.37,2.28]
[1733478044362,14.84393023,236.42,236.35,2.28]
[1733478044363,2.1132,236.38,236.35,2.28]
[1733478044651,14.84393023,236.42,236.35,2.28]
[1733478044859,14.84393023,236.46,236.35,6.51992464]
[1733478045154,14.84393023,236.46,236.35,2.28]
[1733478045552,2.1128,236.43,236.35,4.3934]
[1733478045757,14.84393023,236.46,236.35,4.3934]
[1733478046057,2.1131,236.39,236.35,2.28]
[1733478046850,14.84393023,236.42,236.33,2.1135]
[1733478047057,2.1133,236.37,236.34,2.28]
[1733478048059,14.84393023,236.42,236.32,2.28]
[1733478048559,14.84393023,236.38,236.32,2.28]
[1733478049754,2.1135,236.35,236.32,2.28]
[1733478050354,14.84393023,236.42,236.32,2.28]
[1733478050550,14.84393023,236.46,236.32,2.28]
[1733478050956,14.84393023,236.46,236.32,6.56639031]
[1733478051159,14.84393023,236.46,236.33,1.3385]
[1733478051460,2.1125,236.46,236.41,2.1129]
[1733478051654,2.1125,236.46,236.42,2.28]
[1733478052361,2.1124,236.47,236.42,4.3928]
[1733478054053,1.3088,236.51,236.42,4.3928]
[1733478054257,1.3088,236.51,236.42,2.28]
[1733478054959,2.1127,236.43,236.42,2.28]
[1733478060363,2.1127,236.43,236.38,2.1132]
[1733478060364,9.27630719,236.45,236.37,2.28]
[1733478060563,9.27630719,236.41,236.37,2.28]
[1733478060968,9.27630719,236.44,236.37,2.28]
[1733478061160,9.27630719,236.47,236.37,2.28]
[1733478062565,2.1124,236.47,236.43,2.1127]
[1733478062760,9.27630719,236.5,236.44,2.28]
[1733478062961,9.27630719,236.5,236.45,2.28]
[1733478063268,9.27630719,236.47,236.45,2.28]
[1733478063666,2.1125,236.46,236.45,2.28]
[1733478064867,9.27630719,236.47,236.41,2.28]
[1733478065568,9.27630719,236.52,236.41,2.28]
[1733478066174,2.1121,236.5,236.41,2.28]
[1733478066576,2.1122,236.49,236.41,2.28]
[1733478067272,2.1122,236.49,236.46,2.1124]
[1733478067471,2.1122,236.49,236.47,2.28]
[1733478067872,9.27630719,236.52,236.49,2.1122]
[1733478068074,9.27630719,236.55,236.47,2.28]
[1733478068265,9.27630719,236.58,236.48,5.43409652]
[1733478068672,1.2991,236.65,236.48,5.43409652]
[1733478068968,9.27630719,236.61,236.48,5.43409652]
[1733478070067,11.38740719,236.61,236.48,5.43409652]
[1733478070277,9.27630719,236.61,236.48,5.43409652]
[1733478070872,9.27630719,236.64,236.48,5.43409652]
[1733478071072,11.38720719,236.64,236.58,2.1113]
[1733478071278,9.27630719,236.64,236.59,2.28]
[1733478071570,9.27630719,236.64,236.6,2.28]
[1733478071772,1.4012,236.75,236.6,2.28]
[1733478071976,9.27630719,236.71,236.61,1.3485]
[1733478072171,9.27630719,236.71,236.67,2.1105]
[1733478072374,9.27630719,236.71,236.68,2.28]
[1733478072877,9.27630719,236.74,236.68,2.28]
[1733478073872,9.27630719,236.71,236.48,36.80691965]
[1733478074073,2.111,236.63,236.58,2.1113]
[1733478074269,9.27630719,236.65,236.57,2.28]
[1733478074473,9.27630719,236.62,236.57,2.28]
[1733478074873,9.27630719,236.62,236.57,4.3915]
[1733478075077,9.27630719,236.62,236.57,2.28]
[1733478075282,9.27630719,236.65,236.57,2.28]
[1733478075670,11.38710719,236.65,236.57,2.28]
[1733478075880,9.27630719,236.65,236.57,2.28]
[1733478077079,2.1109,236.64,236.57,2.28]
[1733478077671,9.27630719,236.62,236.58,2.28]
[1733478077870,9.27630719,236.62,236.59,2.28]
[1733478078479,9.27630719,236.65,236.59,2.28]
[1733478078979,3.267,236.75,236.59,2.28]
[1733478079283,9.27630719,236.68,236.59,2.28]
[1733478079878,11.38680719,236.68,236.62,2.111]
[1733478080270,1.3341,236.8,236.6,4.16478336]
[1733478080271,9.27630719,236.71,236.6,4.16478336]
[1733478080475,9.27630719,236.71,236.6,1.2575]
[1733478080985,9.27630719,236.71,236.6,5.49286575]
[1733478081181,9.27630719,236.74,236.7,2.1103]
[1733478081377,9.27630719,236.74,236.71,2.28]
[1733478081880,9.27630719,236.74,236.65,2.625]
[1733478082076,9.27630719,236.7,236.65,2.625]
[1733478082280,9.27630719,236.7,236.66,2.28]
[1733478082471,9.27630719,236.67,236.66,2.28]
[1733478083977,9.27630719,236.67,236.64,2.28]
[1733478084285,9.27630719,236.67,236.63,2.28]
[1733478085281,2.1109,236.65,236.63,2.28]
[1733478085480,9.27630719,236.64,236.63,2.28]
[1733478085675,9.27630719,236.64,236.62,2.28]
[1733478086679,11.38720719,236.64,236.62,2.28]
[1733478088483,2.1109,236.63,236.62,2.28]
[1733478088680,9.27630719,236.64,236.55,2.625]
[1733478088880,9.27630719,236.64,236.59,2.28]
[1733478089079,2.111,236.63,236.59,4.3913]
[1733478089276,2.28,236.73,236.59,2.28]
[1733478089481,9.27630719,236.68,236.59,2.28]
[1733478089883,9.27630719,236.68,236.61,2.111]
[1733478090280,2.1104,236.7,236.65,2.1108]
[1733478090480,9.27630719,236.71,236.66,2.28]
[1733478090680,9.27630719,236.68,236.67,2.28]
[1733478090880,2.1103,236.7,236.66,2.28]
[1733478091174,9.27630719,236.68,236.66,2.28]
[1733478092889,11.38680719,236.68,236.66,2.28]
[1733478093184,9.27630719,236.68,236.61,2.28]
[1733478093379,9.27630719,236.64,236.61,2.28]
[1733478093584,9.27630719,236.67,236.61,2.28]
[1733478093884,9.27630719,236.64,236.55,2.625]
[1733478094087,9.27630719,236.64,236.56,2.28]
[1733478095183,2.111,236.62,236.57,2.1114]
[1733478095388,2.111,236.62,236.56,2.28]
[1733478095989,9.27630719,236.64,236.56,2.28]
[1733478097185,9.27630719,236.64,236.59,2.1112]
[1733478097384,9.27630719,236.64,236.56,2.28]
[1733478097882,2.111,236.63,236.58,2.1114]
[1733478098381,11.38720719,236.64,236.56,2.28]
[1733478099784,11.38720719,236.64,236.61,2.1111]
[1733478100082,11.38720719,236.64,236.61,4.3911]
[1733478100283,11.38720719,236.64,236.61,2.28]
[1733478100682,9.27630719,236.64,236.61,2.28]
[1733478100878,2.1108,236.66,236.61,2.28]
[1733478101185,9.27630719,236.67,236.63,2.1109]
[1733478101583,2.1107,236.66,236.61,4.391]
[1733478101885,2.1107,236.66,236.61,2.28]
[1733478102081,9.27630719,236.76,236.61,2.28]
[1733478102082,2.28,236.78,236.65,2.1108]
[1733478102283,9.27630719,236.7,236.66,2.28]
[1733478102786,11.38690719,236.67,236.66,2.28]
[1733478103284,2.1109,236.63,236.62,2.28]
[1733478105085,9.27630719,236.64,236.62,2.28]
[1733478105297,2.1107,236.66,236.62,2.28]
[1733478106991,11.38690719,236.67,236.63,2.1109]
[1733478107591,2.1108,236.65,236.62,2.28]
[1733478108092,9.27630719,236.67,236.62,2.28]
[1733478108093,11.38690719,236.67,236.62,2.28]
[1733478108891,11.38690719,236.67,236.63,2.1109]
[1733478109491,11.38690719,236.67,236.62,2.28]
[1733478109692,11.38690719,236.67,236.64,2.1109]
[1733478110392,11.38690719,236.67,236.63,2.1109]
[1733478111487,9.27630719,236.67,236.62,2.28]
[1733478111683,9.27630719,236.7,236.62,2.28]
[1733478112092,11.38670719,236.7,236.66,2.1107]
[1733478112292,11.38670719,236.7,236.62,2.28]
[1733478112293,9.27630719,236.67,236.62,2.28]
[1733478112796,9.27630719,236.67,236.64,2.1108]
[1733478114888,9.27630719,236.67,236.66,2.1107]
[1733478115493,2.1104,236.69,236.66,2.1107]
[1733478115697,2.1104,236.69,236.67,2.28]
[1733478116097,0.9858,236.77,236.67,2.28]
[1733478116392,0.4134,236.79,236.67,2.28]
[1733478116393,9.27630719,236.74,236.67,2.28]
[1733478116898,0.4134,236.79,236.63,2.28]
[1733478116899,9.27630719,236.68,236.63,2.28]
[1733478117100,9.27630719,236.65,236.63,2.28]
[1733478117492,9.27630719,236.65,236.55,2.625]
[1733478117795,9.27630719,236.65,236.56,2.28]
[1733478118293,9.27630719,236.65,236.55,2.625]
[1733478118602,9.27630719,236.65,236.56,2.28]
[1733478119498,2.1109,236.64,236.59,2.1112]
[1733478119698,2.1109,236.64,236.56,2.28]
[1733478119898,9.27630719,236.65,236.56,2.28]
[1733478120495,9.27630719,236.62,236.57,2.28]
[1733478121797,2.1112,236.6,236.56,2.1116]
[1733478122098,1.2672,236.71,236.57,2.28]
[1733478122296,9.27630719,236.67,236.57,2.28]
[1733478122802,9.27630719,236.64,236.57,2.28]
[1733478123195,9.27630719,236.61,236.57,2.28]
[1733478123394,9.27630719,236.61,236.55,1.3496]
[1733478123395,9.27630719,236.61,236.58,2.28]
[1733478126104,5.92822921,236.59,236.58,2.28]
[1733478127110,2.1109,236.64,236.58,4.3913]
[1733478127307,4.218,236.85,236.58,6.54857445]
[1733478127506,5.92822921,236.64,236.58,2.28]
[1733478127703,6.5663,236.85,236.58,8.20822921]
[1733478127914,5.92822921,236.67,236.59,1.2598]
[1733478128117,5.92822921,236.67,236.6,5.92822921]
[1733478128316,5.92822921,236.69,236.62,5.92822921]
[1733478128515,5.92822921,236.69,236.63,2.28]
[1733478129121,0.36001,236.73,236.63,2.28]
[1733478129317,0.36001,236.73,236.64,5.92822921]
[1733478129516,5.92822921,236.72,236.64,5.92822921]
[1733478129712,5.92822921,236.72,236.7,2.1103]
[1733478129918,5.92822921,236.72,236.71,2.28]
[1733478130118,0.36001,236.73,236.71,2.28]
[1733478131119,9.25305566,236.72,236.71,2.28]
[1733478132918,9.25305566,236.72,236.67,2.1105]
[1733478133119,9.25305566,236.72,236.68,2.34]
[1733478134122,11.36315566,236.72,236.68,2.34]
[1733478134422,0.36001,236.73,236.68,2.34]
[1733478135421,0.36001,236.73,236.7,2.1103]
[1733478136521,0.36001,236.73,236.69,2.1104]
[1733478139921,11.36315566,236.72,236.68,2.34]
[1733478140417,0.36001,236.73,236.65,3.4465]
[1733478140418,9.25305566,236.69,236.65,3.4465]
[1733478140623,9.25305566,236.66,236.62,2.34]
[1733478141525,9.25305566,236.66,236.63,2.1109]
[1733478141721,9.25305566,236.66,236.62,2.34]
[1733478141917,9.25305566,236.66,236.59,2.5643]
[1733478142121,2.1109,236.64,236.6,2.34]
[1733478142323,9.25305566,236.68,236.6,2.34]
[1733478142921,9.25305566,236.65,236.62,2.111]
[1733478143527,9.25305566,236.65,236.63,2.1109]
[1733478143722,9.25305566,236.65,236.6,2.34]
[1733478143920,9.25305566,236.68,236.64,2.1108]
[1733478144421,11.36355566,236.68,236.64,2.1108]
[1733478144728,0.36001,236.73,236.6,6.47626982]
[1733478144729,9.25305566,236.71,236.6,6.47626982]
[1733478144922,11.36325566,236.71,236.6,2.34]
[1733478145124,9.25305566,236.71,236.6,2.34]
[1733478145320,9.25305566,236.71,236.69,2.1104]
[1733478145521,9.25305566,236.71,236.69,4.4504]
[1733478145720,9.25305566,236.71,236.7,2.1103]
[1733478146021,0.36001,236.73,236.69,2.34]
[1733478146216,0.36001,236.73,236.72,2.1101]
[1733478149131,9.25305566,236.74,236.72,2.1101]
[1733478149530,9.25305566,236.74,236.63,1.2692]
[1733478149735,9.25305566,236.7,236.64,2.34]
[1733478150032,5.92432398,236.66,236.65,2.1107]
[1733478150531,5.92432398,236.68,236.67,2.1106]
[1733478151132,5.92432398,236.68,236.67,4.4506]
[1733478151725,5.92432398,236.68,236.67,2.34]
[1733478152129,9.25811925,236.68,236.67,2.34]
[1733478152325,9.25811925,236.71,236.67,2.34]
[1733478153735,9.25811925,236.71,236.68,2.1104]
[1733478154036,2.1104,236.7,236.67,2.34]
[1733478154236,9.25811925,236.71,236.68,2.1105]
[1733478155030,9.25811925,236.74,236.67,2.34]
[1733478155240,1.94651,236.85,236.67,15.78032954]
[1733478155436,1.94651,236.85,236.72,2.1101]
[1733478155437,2.1092,236.83,236.72,2.1101]
[1733478155627,9.25811925,236.81,236.73,2.34]
[1733478155832,9.25811925,236.75,236.74,2.34]
[1733478156037,9.25811925,236.75,236.69,1.326]
[1733478156238,9.25811925,236.75,236.69,2.34]
[1733478156839,9.25811925,236.72,236.69,2.34]
[1733478157437,9.25811925,236.72,236.67,2.34]
[1733478157634,9.25811925,236.69,236.66,2.34]
[1733478158235,9.25811925,236.69,236.64,2.34]
[1733478158439,9.25811925,236.65,236.64,2.34]
[1733478158640,9.25811925,236.65,236.6,2.34]
[1733478159439,9.25811925,236.65,236.58,2.1113]
[1733478159638,9.25811925,236.62,236.58,2.34]
[1733478159835,9.25811925,236.65,236.58,2.34]
[1733478160040,9.25811925,236.65,236.61,2.1111]
[1733478160232,9.25811925,236.62,236.58,2.34]
[1733478160638,2.1112,236.6,236.58,2.34]
[1733478160938,9.25811925,236.59,236.54,2.46]
[1733478161134,9.25811925,236.62,236.58,2.1113]
[1733478161334,9.25811925,236.62,236.54,2.46]
[1733478161335,1.7756,236.75,236.55,9.25811925]
[1733478161530,9.25811925,236.71,236.55,14.8593021]
[1733478162338,9.25811925,236.71,236.67,2.1106]